lending/lending_fUSD_20240603
["ID","MTS","AMOUNT","RATE_DAILY","PERIOD"]
[328490656,1717441866217,-524.9,0.00033298,13]
[328490657,1717441866227,-807.33,0.00033298,13]
[328490658,1717441866236,-567.19,0.00033298,13]
[328490659,1717441866245,-500.0,0.00033298,13]
[328490660,1717441866254,-751.56,0.00033298,13]
[328490661,1717441866263,-812.53,0.00033298,13]
[328490662,1717441866272,-500.0,0.00033298,13]
[328490663,1717441866281,-1056.64,0.00033298,13]
[328490664,1717441866291,-1285.88,0.00033298,13]
[328490665,1717441866299,-500.0,0.00033298,13]
[328490666,1717441866309,-500.0,0.00033298,13]
[328490667,1717441866318,-618.37,0.00033298,13]
[328490668,1717441866328,-150.0,0.00033298,7]
[328490669,1717441866338,-521.54,0.00033298,13]
[328490670,1717441866348,-1065.45,0.00033298,13]
[328490671,1717441866357,-901.41,0.00033298,13]
[328490672,1717441866366,-666.56,0.00033298,13]
[328490673,1717441866376,-500.0,0.00033298,13]
[328490674,1717441866386,-1028.0,0.00033298,13]
[328490675,1717441866397,-659.87,0.00033298,13]
[328490676,1717441866406,-587.49,0.00033298,13]
[328490677,1717441866416,-592.14,0.00033298,13]
[328490678,1717441866426,-594.82,0.00033298,13]
[328490679,1717441866436,-805.34,0.00033298,13]
[328490680,1717441866447,-602.92071328,0.00033299,2]
[328490681,1717441866456,-239.152,0.00033299,2]
[328490682,1717441866466,-150.0,0.00033299,2]
[328490683,1717441866475,-736.92,0.00033299,13]
[328490684,1717441866484,-736.92,0.00033299,13]
[328490685,1717441866498,-736.92,0.00033299,13]
[328490686,1717441866520,-736.92,0.00033299,13]
[328490687,1717441866536,-736.92,0.00033299,13]
[328490688,1717441866557,-736.92,0.00033299,13]
[328490689,1717441866578,-737.03372529,0.00033299,13]
[328490690,1717441866596,-1223.559,0.00033299,2]
[328490691,1717441866616,-614.67,0.00033299,13]
[328490692,1717441866632,-614.67,0.00033299,13]
[328490693,1717441866650,-614.67,0.00033299,13]
[328490694,1717441866670,-614.67,0.00033299,13]
[328490695,1717441866692,-614.67,0.00033299,13]
[328490696,1717441866705,-614.67,0.00033299,13]
[328490697,1717441866724,-614.74255275,0.00033299,13]
[328490698,1717441866740,-500.0,0.00033299,13]
[328490699,1717441866760,-500.0,0.00033299,13]
[328490700,1717441866773,-500.0,0.00033299,13]
[328490701,1717441866788,-500.0,0.00033299,13]
[328490702,1717441866805,-566.53691417,0.00033299,13]
[328490703,1717441866821,-703.07,0.00033299,13]
[328490704,1717441866837,-703.07,0.00033299,13]
[328490705,1717441866853,-703.07,0.00033299,13]
[328490706,1717441866868,-703.07,0.00033299,13]
[328490707,1717441866883,-703.07,0.00033299,13]
[328490708,1717441866898,-703.07,0.00033299,13]
[328490709,1717441866914,-703.09138953,0.00033299,13]
[328490710,1717441866929,-1200.42,0.00033299,13]
[328490711,1717441866943,-1200.42,0.00033299,13]
[328490712,1717441866957,-1200.42,0.00033299,13]
[328490713,1717441866973,-1200.42,0.00033299,13]
[328490714,1717441866989,-1200.42,0.00033299,13]
[328490715,1717441867005,-1200.42,0.00033299,13]
[328490716,1717441867021,-1200.45277816,0.00033299,13]
[328490717,1717441867033,-500.0,0.00033299,13]
[328490718,1717441867043,-500.0,0.00033299,13]
[328490719,1717441867053,-566.81254854,0.00033299,13]
[328490720,1717441867062,-500.0,0.00033299,13]
[328490721,1717441867071,-500.0,0.00033299,13]
[328490722,1717441867081,-624.27985322,0.00033299,13]
[328490723,1717441867091,-590.37,0.00033299,13]
[328490724,1717441867102,-590.37,0.00033299,13]
[328490725,1717441867112,-590.37,0.00033299,13]
[328490726,1717441867123,-590.37,0.00033299,13]
[328490727,1717441867132,-590.37,0.00033299,13]
[328490728,1717441867142,-590.37,0.00033299,13]
[328490729,1717441867152,-590.58488786,0.00033299,13]
[328490730,1717441867161,-500.0,0.00033299,13]
[328490731,1717441867170,-500.0,0.00033299,13]
[328490732,1717441867180,-500.0,0.00033299,13]
[328490733,1717441867189,-500.0,0.00033299,13]
[328490734,1717441867198,-500.0,0.00033299,13]
[328490735,1717441867208,-500.0,0.00033299,13]
[328490736,1717441867217,-358.19128236,0.00033299,13]
[328490737,1717441867226,-560.78,0.00033299,13]
[328490738,1717441867236,-560.78,0.00033299,13]
[328490739,1717441867246,-560.78,0.00033299,13]
[328490740,1717441867255,-560.78,0.00033299,13]
[328490741,1717441867265,-560.78,0.00033299,13]
[328490742,1717441867274,-560.78,0.00033299,13]
[328490743,1717441867535,-560.99042694,0.00033299,13]
[328490744,1717441867550,-670.48,0.00033299,13]
[328490745,1717441867561,-670.48,0.00033299,13]
[328490746,1717441867571,-670.48,0.00033299,13]
[328490747,1717441867580,-670.48,0.00033299,13]
[328490748,1717441867590,-670.48,0.00033299,13]
[328490749,1717441867599,-670.49675236,0.00033299,13]
[328490750,1717441867609,-582.19,0.00033299,13]
[328490751,1717441867619,-582.19,0.00033299,13]
[328490752,1717441867628,-582.19,0.00033299,13]
[328490753,1717441867638,-582.19,0.00033299,13]
[328490754,1717441867647,-582.19,0.00033299,13]
[328490755,1717441867658,-582.19,0.00033299,13]
[328490756,1717441867670,-654.59,0.00033299,13]
[328490757,1717441867682,-582.21262251,0.00033299,13]
[328490758,1717441867692,-654.59,0.00033299,13]
[328490759,1717441867702,-654.59,0.00033299,13]
[328490760,1717441867711,-654.59,0.00033299,13]
[328490761,1717441867722,-654.59,0.00033299,13]
[328490762,1717441867731,-654.67809406,0.00033299,13]
[328490763,1717441867741,-1267.03,0.00033299,13]
[328490764,1717441867754,-1267.03,0.00033299,13]
[328490765,1717441867764,-1267.03,0.00033299,13]
[328490766,1717441867774,-1267.03,0.00033299,13]
[328490767,1717441867783,-1267.03,0.00033299,13]
[328490768,1717441867793,-1267.03,0.00033299,13]
[328490769,1717441867803,-1267.07763445,0.00033299,13]
[328490770,1717441867812,-542.94,0.00033299,13]
[328490771,1717441867822,-542.94,0.00033299,13]
[328490772,1717441867831,-542.94,0.00033299,13]
[328490773,1717441867841,-542.94,0.00033299,13]
[328490774,1717441867850,-542.94,0.00033299,13]
[328490775,1717441867860,-542.94,0.00033299,13]
[328490776,1717441867870,-542.96,0.00033299,13]
[328490777,1717441867879,-700.34,0.00033299,13]
[328490778,1717441867889,-700.34,0.00033299,13]
[328490779,1717441867900,-700.34,0.00033299,13]
[328490780,1717441867911,-700.34,0.00033299,13]
[328490781,1717441867920,-700.34,0.00033299,13]
[328490782,1717441867929,-700.34,0.00033299,13]
[328490783,1717441867939,-700.51411082,0.00033299,13]
[328490784,1717441867948,-619.47,0.00033299,13]
[328490785,1717441867958,-619.47,0.00033299,13]
[328490786,1717441867967,-619.47,0.00033299,13]
[328490787,1717441867976,-619.47,0.00033299,13]
[328490788,1717441867986,-500.0,0.00033299,13]
[328490789,1717441867995,-500.0,0.00033299,13]
[328490790,1717441868005,-500.0,0.00033299,13]
[328490791,1717441868015,-646.04992756,0.00033299,13]
[328490792,1717441868024,-758.75,0.00033299,13]
[328490793,1717441868034,-758.75,0.00033299,13]
[328490794,1717441868048,-758.75,0.00033299,13]
[328490795,1717441868057,-758.75,0.00033299,13]
[328490796,1717441868067,-758.75,0.00033299,13]
[328490797,1717441868076,-212.7236992,0.00033299,13]
[328490798,1717441868096,-546.0263008,0.00033299,13]
[328490799,1717441868105,-210.68905226,0.00033299,13]
[328490800,1717441868117,-548.22449335,0.00033299,13]
[328490801,1717441868127,-509.72,0.00033299,13]
[328490802,1717441868137,-83.47638551,0.00033299,13]
[328490803,1717441868149,-362.68407531,0.00033299,13]
[328490804,1717441868161,-63.55953918,0.00033299,13]
[328490805,1717441868170,-424.38369778,0.00033299,13]
[328490806,1717441868182,-85.33630222,0.00033299,13]
[328490807,1717441868191,-509.72,0.00033299,13]
[328490808,1717441868200,-509.72,0.00033299,13]
[328490809,1717441868210,-509.72,0.00033299,13]
[328490810,1717441868219,-509.81021232,0.00033299,13]
[328490811,1717441868229,-232.41196466,0.00033299,13]
[328490812,1717441868240,-363.29803534,0.00033299,13]
[328490813,1717441868250,-595.71,0.00033299,13]
[328490814,1717441868259,-595.71,0.00033299,13]
[328490815,1717441868268,-595.71,0.00033299,13]
[328490816,1717441868278,-595.71,0.00033299,13]
[328490817,1717441868287,-595.71,0.00033299,13]
[328490818,1717441868298,-595.88059949,0.00033299,13]
[328490819,1717441868308,-619.47,0.00033299,13]
[328490820,1717441868318,-619.47,0.00033299,13]
[328490821,1717441868333,-619.6628448,0.00033299,13]
[328490822,1717441868343,-986.93,0.00033299,13]
[328490823,1717441868354,-1153.17,0.00033299,13]
[328490824,1717441868363,-986.93,0.00033299,13]
[328490825,1717441868373,-1153.17,0.00033299,13]
[328490826,1717441868382,-986.93,0.00033299,13]
[328490827,1717441868392,-1153.17,0.00033299,13]
[328490828,1717441868401,-986.93,0.00033299,13]
[328490829,1717441868411,-1153.17,0.00033299,13]
[328490830,1717441868420,-986.93,0.00033299,13]
[328490831,1717441868430,-1153.17,0.00033299,13]
[328490832,1717441868439,-986.93,0.00033299,13]
[328490833,1717441868450,-1153.17,0.00033299,13]
[328490834,1717441868460,-987.03142834,0.00033299,13]
[328490835,1717441868470,-1153.19266251,0.00033299,13]
[328490836,1717441868480,-985.83,0.00033299,13]
[328490837,1717441868490,-985.83,0.00033299,13]
[328490838,1717441868500,-985.83,0.00033299,13]
[328490839,1717441868511,-985.83,0.00033299,13]
[328490840,1717441868520,-985.83,0.00033299,13]
[328490841,1717441868530,-985.83,0.00033299,13]
[328490842,1717441868539,-986.05605914,0.00033299,13]
[328490843,1717441868550,-610.14,0.00033299,13]
[328490844,1717441868559,-610.14,0.00033299,13]
[328490845,1717441868569,-610.14,0.00033299,13]
[328490846,1717441868579,-610.14,0.00033299,13]
[328490847,1717441868591,-610.14,0.00033299,13]
[328490848,1717441868601,-610.14,0.00033299,13]
[328490849,1717441868612,-610.33807315,0.00033299,13]
[328490850,1717441868621,-500.0,0.00033299,13]
[328490851,1717441868631,-500.0,0.00033299,13]
[328490852,1717441868640,-1382.14,0.00033299,13]
[328490853,1717441868650,-500.0,0.00033299,13]
[328490854,1717441868660,-947.80468638,0.00033299,13]
[328490865,1717441992672,-941.4166434,0.00013503,2]
[328490866,1717441992695,-713.53973876,0.00013503,2]
[328490867,1717441992719,-545.13448433,0.00013504,2]
[328490868,1717441992742,-331.12,0.00013505,2]
[328490869,1717441992984,155.0,0.00013503,2]
[328490870,1717441993313,2334.08269721,0.00013503,2]
[328490871,1717441995534,345.31964735,0.00013502,2]
[328490872,1717441996446,687.92420239,0.00013502,2]
[328490873,1717441997337,207.96127058,0.00013502,2]
[328490874,1717442019229,957.2286088,0.00012827,2]
[328490875,1717442020797,947.09879799,0.00013502,2]
[328490876,1717442021197,155.0,0.00013502,2]
[328490877,1717442022577,20252.86596094,0.00013502,2]
[328490878,1717442023931,2609.8027349,0.00013232,2]
[328490879,1717442024864,548473.11242571,0.00013502,2]
[328490880,1717442025724,410.49182116,0.00013502,2]
[328490881,1717442026899,155.0,0.00013502,2]
[328490882,1717442026930,289.66478697,0.00013502,2]
[328490883,1717442034702,947.09879799,0.00013502,2]
[328490884,1717442035348,957.2286088,0.00012827,2]
[328490885,1717442035927,2609.8027349,0.00013232,2]
[328490886,1717442038589,10139.82770699,0.00013502,2]
[328490887,1717442040659,160.0,0.00013502,2]
[328490888,1717442041726,410.49182116,0.00013502,2]
[328490889,1717442042859,548473.11242571,0.00013502,2]
[328490890,1717442043199,211.07299015,0.00013502,2]
[328490891,1717442046543,265.41217256,0.00013502,2]
[328490892,1717442051225,957.2286088,0.00012827,2]
[328490893,1717442051932,287.85308694,0.00013232,2]
[328490894,1717442056702,276.01674615,0.00013502,2]
[328490895,1717442060855,548473.11242571,0.00013502,2]
[328490896,1717442061731,367.32690675,0.00013502,2]
[328490897,1717442071231,957.2286088,0.00012827,2]
[328490898,1717442082857,110732.18278496,0.00013502,2]
[328490899,1717442091233,879.84441775,0.00012827,2]
[328490900,1717442113764,500.0,0.00014,2]
[328490901,1717442114911,500.0,0.00014,2]
[328490902,1717442115354,500.0,0.00014,2]
[328490903,1717442115698,500.0,0.00014,2]
[328490904,1717442116043,658.0,0.00014,2]
[328490907,1717442358769,697.848418,0.00013932,2]
[328490908,1717442366596,155.0,0.00014,2]
[328490909,1717442368134,407.11799921,0.00014,2]
[328490910,1717442372927,35446.92403944,0.00014,2]
[328490911,1717442374272,569.12152784,0.00014,2]
[328490912,1717442375629,1000.0,0.00014,2]
[328490913,1717442375660,1066.49445789,0.00014,2]
[328490914,1717442375806,333.82252227,0.00014,2]
[328490915,1717442377499,282.59682608,0.00014,2]
[328490916,1717442377974,2818.93117646,0.00014,2]
[328490917,1717442378744,1899.51336956,0.00014,2]
[328490918,1717442383607,325.36199878,0.00014,2]
[328490919,1717442383637,537.12917652,0.00014,2]
[328490920,1717442386891,506.11774641,0.00014,2]
[328490921,1717442386930,625.06992541,0.00014,2]
[328490922,1717442393650,4439.26225479,0.00014,2]
[328490923,1717442396412,1182.16739282,0.00014,2]
[328490924,1717442398302,10964.64183587,0.00013999,2]
[328490925,1717442398337,155.0,0.00014,2]
[328490926,1717442400871,365.09781292,0.00014,2]
[328490927,1717442402604,263.53843887,0.00014,2]
[328490928,1717442402652,150.0,0.00014,2]
[328490929,1717442402851,150.0,0.00014,2]
[328490930,1717442403059,150.0,0.00014,2]
[328490931,1717442403248,152.3349855,0.00014,2]
[328490932,1717442403280,7534.4655871,0.00014,2]
[328490933,1717442412582,2005.42062269,0.00014,2]
[328490934,1717442415195,3348.00292037,0.00014,2]
[328490935,1717442422901,410.81529252,0.00014,2]
[328490936,1717442423181,2191.87131538,0.00014,2]
[328490941,1717442577652,542.2859949,0.00014,2]
[328490942,1717442608396,-658.54643572,0.00033,120]
[328490943,1717442608675,-300.0,0.00034559,120]
[328490944,1717442608699,-150.0,0.00034775,120]
[328490945,1717442618831,658.54643572,0.00033,120]
[328490946,1717442625430,170.36410335,0.00013902,2]
[328490947,1717442630167,1251.8193427,0.00014,2]
[328490948,1717442637248,201.43616238,0.00014,2]
[328490949,1717442638820,658.54643572,0.00033,120]
[328490954,1717442655017,658.54643572,0.00033,120]
[328490955,1717442677004,658.54643572,0.00033,120]
[328490956,1717442692837,658.54643572,0.00033,120]
[328490957,1717442710833,298.72138568,0.00033,120]
[328490958,1717442710853,300.0,0.00033,120]
[328490994,1717443032586,-253.04392149,0.00014062,2]
[328490995,1717443032596,-2367.97259469,0.00014062,2]
[328490996,1717443032605,-7532.11307498,0.00014063,2]
[328490997,1717443032615,-1200.83002115,0.00014064,2]
[328490998,1717443032624,-170.36410335,0.00014066,2]
[328490999,1717443032633,-1209.05468508,0.00014994,2]
[328491000,1717443032642,-855.65609833,0.00014995,2]
[328491001,1717443032651,-150.0,0.00014996,2]
[328491002,1717443032660,-568.34509592,0.00014996,2]
[328491003,1717443032673,-1765.73760129,0.00014996,2]
[328491004,1717443032682,-4286.86690961,0.00014996,2]
[328491005,1717443032692,-1247.89177736,0.00014997,2]
[328491006,1717443032701,-752.05039497,0.00015,2]
[328491007,1717443032711,-387.34629675,0.00016475,2]
[328491008,1717443032723,-19.77170246,0.00016475,2]
[328491009,1717443032732,-296.512316,0.00016475,2]
[328491010,1717443032741,-424.29838261,0.00016475,2]
[328491011,1717443032753,-500.53973003,0.00016475,2]
[328491012,1717443032765,-9602.63392216,0.00016475,2]
[328491013,1717443032774,-1793.6436569,0.00016476,2]
[328491014,1717443032783,-713.53973876,0.00016477,2]
[328491015,1717443032793,-155.0,0.00016477,2]
[328491016,1717443032803,-2624.55333542,0.00016478,2]
[328491017,1717443032815,-2130.58706425,0.00016478,2]
[328491018,1717443032824,-207.96127058,0.00016478,2]
[328491019,1717443032833,-345.31964735,0.00016478,2]
[328491020,1717443032843,-677.97201772,0.0001648,2]
[328491021,1717443032854,-995.87545876,0.0001648,2]
[328491022,1717443032865,-119.79618042,0.0001648,2]
[328491023,1717443032875,-1265.80381958,0.00016481,2]
[328491024,1717443032886,-771.49618042,0.00016481,2]
[328491025,1717443032895,-275.50381958,0.00016482,2]
[328491026,1717443032906,-224.48618042,0.00016482,2]
[328491027,1717443032915,-967.09,0.00016483,2]
[328491028,1717443032924,-210.0,0.00016496,2]
[328491029,1717443032933,-1803.93057379,0.000165,2]
[328491030,1717443032942,-537.12917652,0.00017255,2]
[328491031,1717443032951,-263.53843887,0.00017255,2]
[328491032,1717443032961,-648.2656304,0.00017256,2]
[328491034,1717443033033,-1251.24773916,0.00017256,2]
[328491035,1717443033043,-330.47970213,0.00017257,2]
[328491037,1717443033149,-175.63804428,0.00017257,2]
[328491038,1717443033159,-271.46462409,0.00017258,2]
[328491039,1717443033171,-795.0298338,0.00017258,2]
[328491040,1717443033180,-293.0,0.00018145,2]
[328491041,1717443033189,-152.55,0.00018197,2]
[328491042,1717443033199,-155.0,0.00019196,2]
[328491043,1717443033209,-4439.26225479,0.00019196,2]
[328491044,1717443033218,-1182.16739282,0.00019196,2]
[328491045,1717443033228,-3888.75526892,0.00019451,2]
[328491046,1717443033238,-14895.43096736,0.00019451,2]
[328491047,1717443033252,-2268.68775,0.00019451,2]
[328491048,1717443033264,-566.55211337,0.00019451,2]
[328491049,1717443033276,-4203.55193141,0.00019451,2]
[328491050,1717443033518,-13512.7012773,0.00019451,2]
[328491051,1717443033528,-2191.87131538,0.00019718,2]
[328491052,1717443033537,-625.06992541,0.0001994,2]
[328491053,1717443033547,-410.81529252,0.00019948,2]
[328491054,1717443033556,-411.0,0.0001996,2]
[328491055,1717443033566,-1229.0,0.000217,3]
[328491056,1717443033577,-412.79,0.00021718,2]
[328491057,1717443033587,-576.0,0.00021956,2]
[328491058,1717443033597,-250.0,0.00022218,2]
[328491059,1717443033606,-150.0,0.0002222,2]
[328491060,1717443033616,-168.11,0.00022286,2]
[328491061,1717443033625,-200.0,0.00022298,2]
[328491062,1717443033635,-1020.42,0.00022545,2]
[328491063,1717443033645,-161.02,0.00022803,2]
[328491064,1717443033654,-161.02,0.00022822,2]
[328491065,1717443033664,-161.02,0.00022841,2]
[328491066,1717443033673,-161.02,0.0002286,2]
[328491067,1717443033683,-250.0,0.00022871,2]
[328491068,1717443033693,-161.02,0.00022879,2]
[328491069,1717443033702,-161.02,0.00022898,2]
[328491070,1717443033712,-161.02,0.00022917,2]
[328491071,1717443033722,-23900.0,0.00022952,2]
[328491072,1717443033732,-1895.25,0.00022977,2]
[328491073,1717443033741,-415.93,0.00023023,2]
[328491074,1717443033751,-1000.0,0.00023064,2]
[328491075,1717443033761,-180.81,0.00023733,2]
[328491076,1717443033771,-412.79,0.00023982,2]
[328491077,1717443033780,-806.0,0.00024151,2]
[328491078,1717443033790,-159.61,0.00024384,2]
[328491079,1717443033799,-159.86,0.00024384,2]
[328491080,1717443033809,-1020.42,0.00025285,2]
[328491081,1717443033818,-1000.0,0.00025947,2]
[328491082,1717443033827,-849.53436316,0.00026031,3]
[328491083,1717443033836,-849.53436317,0.00026031,3]
[328491084,1717443033846,-412.79,0.00026246,2]
[328491085,1717443033855,-1129.0,0.00026566,2]
[328491086,1717443033865,-548.76898063,0.00026639,2]
[328491087,1717443033875,-152.55,0.00027295,2]
[328491088,1717443033885,-1020.42,0.00028024,2]
[328491089,1717443033895,-412.79,0.0002851,2]
[328491090,1717443033904,-1000.0,0.0002883,2]
[328491091,1717443033914,-1125.0,0.00029223,2]
[328491092,1717443033923,-166.40559634,0.00029535,2]
[328491093,1717443033934,-452.42025595,0.00029635,2]
[328491094,1717443033943,-412.79,0.00030774,2]
[328491095,1717443033953,-166.40559633,0.00031368,15]
[328491096,1717443033963,-1000.0,0.00031713,2]
[328491097,1717443033973,-151.0,0.00031908,7]
[328491098,1717443033983,-150.43155597,0.00031993,7]
[328491099,1717443033993,-180.0,0.000323,17]
[328491100,1717443034002,-191.0,0.000323,17]
[328491101,1717443034012,-2873.2927,0.00032576,2]
[328491102,1717443034022,-14631.9498,0.00032676,2]
[328491103,1717443034036,-1000.0,0.00032676,2]
[328491104,1717443034046,-2500.0,0.00032676,2]
[328491105,1717443034055,-500.0,0.00032775,2]
[328491106,1717443034066,-500.0,0.00032775,2]
[328491107,1717443034077,-500.0,0.00032775,2]
[328491108,1717443034087,-194.16,0.00032775,2]
[328491109,1717443034096,-245000.0,0.00032776,2]
[328491110,1717443034108,-9292.3423,0.00032776,2]
[328491111,1717443034119,-322.06476079,0.00032776,2]
[328491112,1717443034129,-171.71,0.00032866,10]
[328491113,1717443034139,-858.59,0.00032866,10]
[328491114,1717443034149,-337.47918463,0.00032876,13]
[328491115,1717443034159,-500.0,0.00032876,13]
[328491116,1717443034169,-500.0,0.00032876,13]
[328491117,1717443034179,-500.0,0.00032876,13]
[328491118,1717443034188,-500.0,0.00032876,13]
[328491119,1717443034198,-500.0,0.00032876,13]
[328491120,1717443034207,-500.0,0.00032876,13]
[328491121,1717443034217,-500.0,0.00032876,13]
[328491122,1717443034226,-500.0,0.00032876,13]
[328491123,1717443034236,-500.0,0.00032876,13]
[328491124,1717443034245,-728.15,0.00032876,13]
[328491125,1717443034255,-500.0,0.00032876,13]
[328491126,1717443034265,-728.15,0.00032876,13]
[328491127,1717443034275,-500.0,0.00032876,13]
[328491128,1717443034285,-500.0,0.00032876,13]
[328491129,1717443034295,-500.0,0.00032876,13]
[328491130,1717443034304,-500.0,0.00032876,13]
[328491131,1717443034314,-179.96550872,0.00032876,13]
[328491132,1717443034323,-500.0,0.00032876,13]
[328491133,1717443034333,-500.0,0.00032876,13]
[328491134,1717443034343,-500.0,0.00032876,13]
[328491135,1717443034353,-500.0,0.00032876,13]
[328491136,1717443034362,-500.0,0.00032876,13]
[328491137,1717443034372,-500.0,0.00032876,13]
[328491138,1717443034390,-500.0,0.00032876,13]
[328491139,1717443034401,-500.0,0.00032876,13]
[328491140,1717443034411,-500.0,0.00032876,13]
[328491141,1717443034420,-500.0,0.00032876,13]
[328491142,1717443034430,-500.0,0.00032876,13]
[328491143,1717443034440,-500.0,0.00032876,13]
[328491144,1717443034450,-667.53,0.00032876,13]
[328491145,1717443034460,-667.53,0.00032876,13]
[328491146,1717443034470,-566.94,0.00032876,13]
[328491147,1717443034480,-566.94,0.00032876,13]
[328491148,1717443034490,-500.0,0.00032876,13]
[328491149,1717443034500,-500.0,0.00032876,13]
[328491150,1717443034510,-500.0,0.00032876,13]
[328491151,1717443034520,-500.0,0.00032876,13]
[328491152,1717443034530,-527.64,0.00032876,13]
[328491153,1717443034540,-527.64,0.00032876,13]
[328491154,1717443034550,-500.0,0.00032876,13]
[328491155,1717443034559,-500.0,0.00032876,13]
[328491156,1717443034569,-500.0,0.00032876,13]
[328491157,1717443034579,-500.0,0.00032876,13]
[328491158,1717443034589,-500.0,0.00032876,13]
[328491159,1717443034599,-534.93,0.00032876,13]
[328491160,1717443034609,-500.0,0.00032876,13]
[328491161,1717443034619,-534.93,0.00032876,13]
[328491162,1717443034629,-500.0,0.00032876,13]
[328491163,1717443034639,-500.0,0.00032876,13]
[328491164,1717443034648,-500.0,0.00032876,13]
[328491165,1717443034658,-500.0,0.00032876,13]
[328491166,1717443034667,-500.0,0.00032876,13]
[328491167,1717443034677,-500.0,0.00032876,13]
[328491168,1717443034687,-500.0,0.00032876,13]
[328491169,1717443034697,-500.0,0.00032876,13]
[328491170,1717443034707,-500.0,0.00032876,13]
[328491171,1717443034717,-500.0,0.00032876,13]
[328491172,1717443034727,-500.0,0.00032876,13]
[328491173,1717443034737,-500.0,0.00032876,13]
[328491174,1717443034746,-500.0,0.00032876,13]
[328491175,1717443034757,-500.0,0.00032876,13]
[328491176,1717443034767,-500.0,0.00032876,13]
[328491177,1717443034777,-500.0,0.00032876,13]
[328491178,1717443034786,-500.0,0.00032876,13]
[328491179,1717443034796,-500.0,0.00032876,13]
[328491180,1717443034806,-500.0,0.00032876,13]
[328491181,1717443034999,-500.0,0.00032876,13]
[328491182,1717443035010,-500.0,0.00032876,13]
[328491183,1717443035021,-500.0,0.00032876,13]
[328491184,1717443035036,-500.0,0.00032876,13]
[328491185,1717443035047,-500.0,0.00032876,13]
[328491186,1717443035056,-500.0,0.00032876,13]
[328491187,1717443035067,-500.0,0.00032876,13]
[328491188,1717443035078,-500.0,0.00032876,13]
[328491189,1717443035087,-2288.98,0.00032876,13]
[328491190,1717443035097,-2288.98,0.00032876,13]
[328491191,1717443035108,-500.0,0.00032876,13]
[328491192,1717443035118,-500.0,0.00032876,13]
[328491193,1717443035128,-500.0,0.00032876,13]
[328491194,1717443035137,-500.0,0.00032876,13]
[328491195,1717443035147,-500.0,0.00032876,13]
[328491196,1717443035157,-500.0,0.00032876,13]
[328491197,1717443035167,-500.0,0.00032876,13]
[328491198,1717443035177,-500.0,0.00032876,13]
[328491199,1717443035187,-26493.80425958,0.0003297,2]
[328491200,1717443035197,-500.0,0.00033,5]
[328491201,1717443035207,-50455.74864047,0.00033,2]
[328491202,1717443035217,-346.32277802,0.00033,4]
[328491203,1717443035231,-1399.47319611,0.00033,4]
[328491204,1717443035241,-1405.3860906,0.00033,4]
[328491205,1717443035251,-599.82363688,0.00033,2]
[328491206,1717443035261,-59.82505004,0.00033,120]
[328491207,1717443035271,-1504.90417696,0.00033,7]
[328491208,1717443035281,-500.0,0.00033033,10]
[328491209,1717443035291,-412.79,0.00033038,2]
[328491210,1717443035302,-380.99545303,0.00033064,2]
[328491211,1717443035313,-10000.0,0.00033095,2]
[328491212,1717443035324,-411.4925,0.00033133,2]